bitfinex-derivatives/quotes_SOLF0:USTF0_20250625
["timestamp","ask_amount","ask_price","bid_price","bid_amount"]
[1750880122176,40.88980474,143.87,143.83,6.949]
[1750880122382,13.33506298,143.86,143.81,4.42980474]
[1750880122675,13.33506298,143.85,143.81,4.42980474]
[1750880122870,43.4071,143.87,143.81,4.42980474]
[1750880123070,13.36113865,143.86,143.81,4.42980474]
[1750880123369,13.36113865,143.85,143.81,4.42980474]
[1750880123677,43.4071,143.87,143.83,6.9487]
[1750880123877,13.36163861,143.86,143.83,6.9487]
[1750880124075,13.36163861,143.85,143.81,4.42980474]
[1750880124381,47.83660474,143.88,143.81,4.42980474]
[1750880124579,10.65862114,143.87,143.86,6.9475]
[1750880124775,36.46,143.88,143.86,6.9475]
[1750880124978,36.46,143.88,143.83,4.42980474]
[1750880125179,13.3610965,143.87,143.81,4.42980474]
[1750880125378,10.65865731,143.86,143.81,4.42980474]
[1750880125581,47.83660474,143.88,143.84,6.9482]
[1750880125881,10.65815567,143.87,143.84,6.9482]
[1750880126084,10.65815567,143.86,143.84,6.9482]
[1750880126379,6.9472,143.87,143.83,6.9488]
[1750880126684,10.65821038,143.86,143.83,6.9488]
[1750880126882,6.9472,143.87,143.83,6.9488]
[1750880127083,5.4404301,143.86,143.83,6.9488]
[1750880127282,6.9472,143.87,143.83,6.9488]
[1750880127484,10.65756703,143.86,143.83,6.9488]
[1750880127784,6.9472,143.87,143.83,6.9488]
[1750880127975,10.66680484,143.86,143.83,6.9488]
[1750880128173,6.9472,143.87,143.83,6.9488]
[1750880128379,10.66680484,143.86,143.84,6.9484]
[1750880128577,47.83660474,143.88,143.81,4.42980474]
[1750880128782,13.37307985,143.87,143.81,4.42980474]
[1750880128995,5.45014879,143.86,143.81,4.42980474]
[1750880129282,47.83660474,143.88,143.81,4.42980474]
[1750880129580,10.66670622,143.87,143.84,6.9485]
[1750880129788,47.83660474,143.88,143.84,6.9485]
[1750880130084,10.67486883,143.87,143.84,6.9485]
[1750880130284,47.83660474,143.88,143.84,6.9485]
[1750880130485,13.38134852,143.87,143.84,6.9485]
[1750880130786,5.45030958,143.86,143.84,6.9485]
[1750880130989,6.9471,143.87,143.84,6.9485]
[1750880131286,5.45046517,143.86,143.84,6.9485]
[1750880131473,6.9471,143.87,143.84,6.9485]
[1750880131679,5.45535729,143.86,143.84,6.9485]
[1750880131983,6.9471,143.87,143.83,6.9489]
[1750880132182,5.45575443,143.86,143.83,6.9489]
[1750880132385,6.9471,143.87,143.83,6.9489]
[1750880132680,10.68185126,143.86,143.83,6.9489]
[1750880132883,6.9471,143.87,143.83,6.9489]
[1750880133081,17.62945126,143.86,143.83,6.9489]
[1750880133285,40.88980474,143.88,143.83,6.9489]
[1750880133489,20.33774411,143.87,143.83,6.9489]
[1750880133685,10.68185126,143.86,143.83,6.9489]
[1750880133890,6.9474,143.87,143.83,6.9489]
[1750880134187,10.68185125,143.86,143.83,6.9489]
[1750880134383,6.9474,143.87,143.83,6.9489]
[1750880134583,10.68185125,143.86,143.84,6.9485]
[1750880134788,47.83660474,143.88,143.84,6.9485]
[1750880134981,13.3957018,143.87,143.84,6.9485]
[1750880135188,10.68613387,143.86,143.84,6.9485]
[1750880135488,47.83660474,143.88,143.84,6.9485]
[1750880135687,13.39698404,143.87,143.84,6.9485]
[1750880135887,10.68714842,143.86,143.84,6.9485]
[1750880136198,6.9472,143.87,143.84,6.9485]
[1750880136485,10.68711143,143.86,143.84,6.9485]
[1750880136688,6.9472,143.87,143.84,6.9485]
[1750880137188,13.40520288,143.86,143.84,6.9485]
[1750880137394,6.9472,143.87,143.84,6.9485]
[1750880137592,13.40527701,143.86,143.84,6.9485]
[1750880137887,6.9472,143.87,143.84,6.9485]
[1750880138084,13.40144137,143.86,143.84,6.9485]
[1750880138289,5.46247352,143.85,143.84,6.9485]
[1750880138490,10.69363476,143.85,143.84,6.9485]
[1750880138794,36.46,143.88,143.81,12.98494499]
[1750880138993,13.41055293,143.87,143.82,4.42980474]
[1750880139190,13.41055293,143.86,143.82,4.42980474]
[1750880139397,43.4066,143.88,143.82,4.42980474]
[1750880139692,13.41068436,143.87,143.82,4.42980474]
[1750880139893,13.41068436,143.86,143.82,4.42980474]
[1750880140094,5.46620539,143.85,143.82,4.42980474]
[1750880140285,43.4066,143.88,143.82,4.42980474]
[1750880140595,13.40907912,143.87,143.82,4.42980474]
[1750880140793,13.40907912,143.86,143.82,4.42980474]
[1750880141094,43.4066,143.88,143.82,12.98494499]
[1750880141299,13.40809231,143.87,143.85,6.948]
[1750880141487,10.69649434,143.86,143.85,6.948]
[1750880142589,36.46,143.88,143.86,6.9471]
[1750880142798,13.40566509,143.87,143.86,6.9471]
[1750880143292,13.40074684,143.87,143.85,6.9478]
[1750880143492,36.46,143.88,143.85,6.9478]
[1750880143698,13.39324918,143.87,143.85,6.9478]
[1750880143987,36.46,143.88,143.85,6.9478]
[1750880144193,7.94048215,143.87,143.85,6.9478]
[1750880144400,36.46,143.88,143.85,6.9478]
[1750880144585,13.39482063,143.87,143.85,6.9478]
[1750880144883,36.46,143.88,143.85,6.9478]
[1750880145081,13.39386807,143.87,143.85,6.9478]
[1750880145281,43.4066,143.88,143.84,6.9481]
[1750880145485,13.39432711,143.87,143.82,12.98494499]
[1750880145693,5.45501105,143.86,143.82,12.98494499]
[1750880145990,43.4066,143.88,143.82,12.98494499]
[1750880146188,9.10440474,143.9,143.82,12.98494499]
[1750880146189,10.68199182,143.87,143.82,12.98494499]
[1750880146391,9.10440474,143.9,143.82,12.98494499]
[1750880146592,13.39496243,143.89,143.82,12.98494499]
[1750880146794,13.39496243,143.88,143.86,6.9474]
[1750880146998,10.67996474,143.87,143.86,6.9474]
[1750880147188,13.39498284,143.87,143.86,6.9474]
[1750880147502,10.67996474,143.87,143.86,6.9474]
[1750880148904,10.68634103,143.87,143.86,6.9474]
[1750880152000,10.68528022,143.87,143.86,6.9474]
[1750880152904,10.68528022,143.87,143.85,6.9478]
[1750880153202,2.3442,143.9,143.85,6.9478]
[1750880153407,13.40705298,143.89,143.85,6.9478]
[1750880153706,20.35365298,143.88,143.85,6.9478]
[1750880154002,13.40705298,143.87,143.85,6.9478]
[1750880154205,6.9466,143.88,143.85,6.9478]
[1750880154395,13.40713649,143.87,143.85,6.9478]
[1750880154700,6.9466,143.88,143.85,6.9478]
[1750880154895,13.40698352,143.87,143.85,6.9478]
[1750880155096,6.9466,143.88,143.85,6.9478]
[1750880155296,13.4054452,143.87,143.85,6.9478]
[1750880155497,6.9466,143.88,143.85,6.9478]
[1750880155796,13.4054452,143.87,143.85,6.9478]
[1750880155997,6.9466,143.88,143.85,6.9478]
[1750880156198,13.40061656,143.87,143.85,6.9478]
[1750880156402,6.9466,143.88,143.85,6.9478]
[1750880156602,13.40113543,143.87,143.85,6.9478]
[1750880156804,6.9466,143.88,143.85,6.9478]
[1750880159309,6.9463,143.89,143.86,6.9474]
[1750880159508,13.39968341,143.88,143.84,4.42980474]
[1750880159805,40.80980474,143.91,143.84,4.42980474]
[1750880160105,20.34410757,143.9,143.87,6.9467]
[1750880160307,13.39828926,143.89,143.87,6.9467]
[1750880160504,13.39828926,143.88,143.87,6.9467]
[1750880160701,4.7783,143.94,143.87,2.8310065]
[1750880160907,4.7783,143.94,143.84,44.9580959]
[1750880160908,2.8310065,143.92,143.88,2.8310065]
[1750880161101,13.40996402,143.91,143.88,2.8310065]
[1750880161297,13.40996402,143.9,143.87,2.8310065]
[1750880161510,10.69633687,143.89,143.88,6.9463]
[1750880161711,2.8310065,143.92,143.88,2.8310065]
[1750880161910,13.40971699,143.91,143.88,2.8310065]
[1750880162208,5.46129078,143.9,143.89,6.946]
[1750880162808,52.52416001,143.94,143.91,6.9451]
[1750880163011,13.12561012,143.93,143.91,6.9451]
[1750880163309,5.46082469,143.92,143.91,6.9451]
[1750880163510,36.38,143.94,143.92,6.9442]
[1750880163710,611.64496001,143.96,143.92,6.9442]
[1750880163911,13.03982715,143.95,143.92,6.9442]
[1750880164108,611.64496001,143.96,143.92,6.9442]
[1750880164109,8.16360995,143.94,143.92,6.9442]
[1750880164411,611.64496001,143.96,143.92,6.9442]
[1750880164608,8.16344541,143.95,143.93,6.9442]
[1750880164814,8.16348263,143.94,143.89,4.42196001]
[1750880165007,6.943,143.96,143.89,4.42196001]
[1750880165207,19.98291245,143.95,143.92,6.9444]
[1750880165414,5.45374234,143.94,143.92,6.9444]
[1750880165615,258.0396825,143.97,143.92,6.9444]
[1750880165813,19.96904981,143.96,143.92,6.9444]
[1750880166010,8.15489751,143.95,143.93,6.9441]
[1750880166220,6.943,143.96,143.93,6.9441]
[1750880166411,15.09825631,143.95,143.89,4.42196001]
[1750880166612,5.4480376,143.94,143.89,4.42196001]
[1750880166814,6.9433,143.95,143.89,4.42196001]
[1750880167018,8.15529736,143.94,143.89,4.42196001]
[1750880167217,6.9433,143.95,143.91,6.9447]
[1750880167418,5.44822313,143.94,143.91,6.9447]
[1750880167720,4.86858791,143.96,143.91,6.9447]
[1750880167920,15.09527618,143.95,143.92,6.9447]
[1750880168223,5.44591068,143.94,143.92,6.9447]
[1750880168412,6.9435,143.95,143.92,6.9447]
[1750880168613,5.48007533,143.94,143.92,6.9447]
[1750880168816,6.9435,143.95,143.92,6.9447]
[1750880169018,5.48006384,143.94,143.92,6.9447]
[1750880169320,6.9435,143.95,143.92,6.9447]
[1750880170523,5.47752687,143.94,143.88,36.38]
[1750880170721,46.28001992,143.93,143.85,43.16106001]
[1750880171020,5.47805991,143.92,143.85,43.16106001]
[1750880171319,6.9454,143.91,143.88,6.9463]
[1750880173125,6.9451,143.92,143.85,43.16106001]
[1750880174024,6.9453,143.91,143.88,6.9464]
[1750880174320,6.9453,143.91,143.85,43.16106001]
[1750880174321,5.48725294,143.9,143.85,43.16106001]
[1750880174520,4.42196001,143.91,143.85,43.16106001]
[1750880174821,12.43324641,143.9,143.87,6.9468]
[1750880175016,6.9458,143.9,143.87,6.9468]
[1750880179528,6.9462,143.89,143.86,6.9473]
[1750880180024,6.9462,143.89,143.87,6.9469]
[1750880180626,6.9458,143.9,143.87,6.9469]
[1750880181030,6.9458,143.9,143.88,6.9465]
[1750880181234,6.9458,143.9,143.84,4.9044]
[1750880181639,6.9458,143.9,143.87,6.9468]
[1750880182642,4.42196001,143.91,143.84,4.9044]
[1750880182844,8.16066693,143.9,143.84,4.9044]
[1750880183035,12.40809032,143.89,143.84,4.9044]
[1750880183233,4.42196001,143.91,143.84,4.9044]
[1750880183543,8.16101299,143.9,143.84,4.9044]
[1750880183841,5.46181815,143.89,143.86,6.9471]
[1750880184038,6.946,143.9,143.86,6.9471]
[1750880184542,6.9461,143.89,143.86,6.9471]
[1750880185142,6.9461,143.89,143.84,4.9044]
[1750880185644,6.9461,143.89,143.86,6.9472]
[1750880185941,6.9461,143.89,143.84,4.9044]
[1750880186340,6.9461,143.89,143.86,6.9472]
[1750880188043,6.9461,143.89,143.84,4.9044]
[1750880188044,6.9461,143.89,143.87,6.947]
[1750880188345,6.9459,143.9,143.87,6.947]
[1750880188547,5.46396324,143.89,143.87,6.947]
[1750880188839,4.42196001,143.91,143.88,6.9463]
[1750880189040,8.16409109,143.9,143.84,4.9044]
[1750880189241,4.42196001,143.91,143.87,6.9468]
[1750880189439,15.10988881,143.9,143.87,6.9468]
[1750880189747,6.9458,143.9,143.87,6.9468]
[1750880190149,5.46389586,143.89,143.87,6.9468]
[1750880190347,6.9458,143.9,143.87,6.9468]
[1750880190550,5.46444236,143.89,143.87,6.9468]
[1750880190744,6.9458,143.9,143.87,6.9468]
[1750880190942,5.4644811,143.89,143.87,6.9468]
[1750880191146,6.9458,143.9,143.87,6.9468]
[1750880191351,5.46444235,143.89,143.87,6.9468]
[1750880191547,6.9458,143.9,143.88,6.9465]
[1750880192342,5.46499734,143.89,143.88,6.9465]
[1750880192939,5.46499734,143.89,143.87,6.9468]
[1750880193142,6.9462,143.89,143.87,6.9468]
[1750880193343,6.9462,143.89,143.85,4.42196001]
[1750880194347,6.9462,143.89,143.87,6.947]
[1750880194751,6.9462,143.89,143.86,6.9473]
[1750880195851,9.14516001,143.92,143.85,4.42196001]
[1750880196050,12.99671311,143.91,143.85,4.42196001]
[1750880196249,15.11252528,143.9,143.88,6.9463]
[1750880196450,9.14516001,143.92,143.85,4.42196001]
[1750880196647,8.16875742,143.91,143.84,17.88702613]
[1750880196847,12.59071743,143.9,143.84,9.32636001]
[1750880197050,6.9467,143.88,143.86,6.9473]
[1750880197255,4.42196001,143.9,143.86,6.9473]
[1750880197445,8.16982892,143.89,143.86,6.9473]
[1750880197650,5.46673229,143.88,143.86,6.9473]
[1750880197856,6.9462,143.89,143.86,6.9473]
[1750880198154,5.47191367,143.88,143.86,6.9473]
[1750880198349,6.9462,143.89,143.86,6.9473]
[1750880198652,5.47193939,143.88,143.87,6.9469]
[1750880198852,4.83055651,143.91,143.84,9.32636001]
[1750880199053,15.12023033,143.9,143.84,17.88702613]
[1750880199255,5.47143901,143.89,143.84,17.88702613]
[1750880199457,6.9458,143.9,143.87,6.9468]
[1750880199648,5.47278838,143.89,143.84,17.88702613]
[1750880199953,6.9458,143.9,143.84,17.88702613]
[1750880200753,6.9458,143.9,143.88,6.9465]
[1750880201357,5.46944729,143.89,143.88,6.9465]
[1750880202658,5.46944729,143.89,143.87,6.9468]
[1750880202858,6.9458,143.9,143.87,6.9468]
[1750880203065,5.46939697,143.89,143.87,6.9468]
[1750880203252,6.9458,143.9,143.87,6.9468]
[1750880203454,5.46939697,143.89,143.87,6.9468]
[1750880203759,6.9458,143.9,143.87,6.9468]
[1750880204057,5.46995219,143.89,143.88,6.9466]
[1750880208661,39.05086752,143.93,143.88,2.83086752]
[1750880208852,2.70675776,143.92,143.88,2.83086752]
[1750880209052,39.05086752,143.93,143.88,2.83086752]
[1750880209257,2.7067562,143.92,143.91,6.9451]
[1750880210859,6.9432,143.95,143.92,6.9446]
[1750880211064,7.56748891,143.94,143.92,6.9446]
[1750880211264,6.9432,143.95,143.92,6.9446]
[1750880211563,7.56748815,143.94,143.92,6.9446]
[1750880211749,2.70881893,143.93,143.92,6.9446]
[1750880212062,2.70881893,143.93,143.91,6.9447]
[1750880212359,6.9432,143.95,143.91,6.9447]
[1750880212562,7.57013579,143.94,143.91,6.9447]
[1750880212864,2.70979603,143.93,143.91,6.9447]
[1750880213053,6.9432,143.95,143.91,6.9447]
[1750880213253,7.56761965,143.94,143.91,6.9447]
[1750880213452,2.70888242,143.93,143.91,6.9447]
[1750880213663,6.9432,143.95,143.91,6.9447]
[1750880213863,7.58315209,143.94,143.91,6.9447]
[1750880214053,2.70884209,143.93,143.92,6.9446]
[1750880214255,2.71020791,143.93,143.92,6.9446]
[1750880214757,2.71020791,143.93,143.89,4.42099457]
[1750880215062,36.22,143.96,143.89,4.42099457]
[1750880215363,7.58376228,143.95,143.92,6.9444]
[1750880215663,2.70902373,143.94,143.92,6.9444]
[1750880215863,43.1631,143.96,143.93,6.9442]
[1750880216164,7.58815248,143.95,143.91,4.42099457]
[1750880216354,2.71341437,143.94,143.91,4.42099457]
[1750880216555,36.22,143.96,143.91,4.42099457]
[1750880216757,2.71136987,143.95,143.91,4.42099457]
[1750880217064,36.22,143.96,143.91,4.42099457]
[1750880217268,2.71134376,143.95,143.91,4.42099457]
[1750880217460,36.22,143.96,143.91,4.42099457]
[1750880217660,2.71134376,143.95,143.91,4.42099457]
[1750880217967,36.22,143.96,143.91,4.42099457]
[1750880218169,2.71134376,143.95,143.91,4.42099457]
[1750880218353,36.22,143.96,143.91,4.42099457]
[1750880218670,47.9055,143.99,143.95,6.9428]
[1750880218858,7.57752998,143.98,143.95,6.9428]
[1750880219157,7.57752998,143.97,143.95,6.9428]
[1750880219457,2.70941498,143.96,143.95,6.9428]
[1750880219657,2.70941498,143.96,143.94,6.9435]
[1750880219873,6.9418,143.98,143.94,6.9435]
[1750880220164,11.9978387,143.97,143.92,6.9444]
[1750880220468,13.01885222,143.96,143.9,36.22]
[1750880220768,8.15118687,143.95,143.92,6.9443]
[1750880220957,4.42099457,143.97,143.9,36.22]
[1750880221160,6.9435,143.95,143.9,36.22]
[1750880221358,6.9435,143.95,143.91,6.9449]
[1750880221359,8.15574726,143.94,143.91,6.9449]
[1750880221561,6.9435,143.95,143.91,6.9449]
[1750880221859,8.15513114,143.94,143.91,6.9449]
[1750880222061,6.9435,143.95,143.91,6.9449]
[1750880222062,5.44163665,143.93,143.91,6.9449]
[1750880222260,6.9435,143.95,143.91,6.9449]
[1750880222457,8.16981637,143.94,143.91,6.9449]
[1750880222664,5.45631594,143.93,143.91,6.9449]
[1750880222958,6.9435,143.95,143.91,6.9449]
[1750880223158,5.4562234,143.94,143.92,6.9447]
[1750880223369,4.42099457,143.97,143.89,4.42099457]
[1750880223660,13.04421994,143.96,143.93,6.9438]
[1750880223869,8.16963202,143.95,143.93,6.9438]
[1750880224056,4.87320295,143.96,143.93,6.9438]
[1750880224358,8.16709116,143.95,143.93,6.9438]
[1750880224560,4.87320294,143.96,143.93,6.9438]
[1750880224759,8.16411278,143.95,143.93,6.9438]
[1750880224960,4.87320275,143.96,143.93,6.9438]
[1750880225162,8.16411278,143.95,143.94,6.9437]
[1750880226370,6.9425,143.97,143.94,6.9437]
[1750880226559,8.15166437,143.96,143.94,6.9437]
[1750880226764,6.9425,143.97,143.94,6.9437]
[1750880226959,8.15165292,143.96,143.94,6.9437]
[1750880227160,5.44291094,143.95,143.93,6.944]
[1750880227356,6.9428,143.96,143.93,6.944]
[1750880227570,5.44275117,143.95,143.93,6.944]
[1750880227871,6.9428,143.96,143.93,6.944]
[1750880228069,5.44242798,143.95,143.93,6.944]
[1750880228271,6.9428,143.96,143.93,6.944]
[1750880228472,8.15112791,143.95,143.93,6.944]
[1750880228677,6.9428,143.96,143.93,6.944]
[1750880228867,8.15111786,143.95,143.93,6.944]
[1750880229174,6.9428,143.96,143.93,6.944]
[1750880229469,8.15104981,143.95,143.93,6.944]
[1750880229670,6.9428,143.96,143.93,6.944]
[1750880229872,8.15055284,143.95,143.93,6.944]
[1750880230074,6.9428,143.96,143.93,6.944]
[1750880230271,8.15031794,143.95,143.93,6.944]
[1750880230576,4.42099457,143.98,143.89,4.42099457]
[1750880230577,6.9425,143.97,143.89,4.42099457]
[1750880230768,8.15036912,143.96,143.91,4.42099457]
[1750880230976,6.9425,143.97,143.91,4.42099457]
[1750880231271,8.14994982,143.96,143.94,6.9433]
[1750880231475,6.9425,143.97,143.94,6.9433]
[1750880231670,8.15028241,143.96,143.91,40.62099457]
[1750880231872,4.86722352,143.98,143.92,2.3623]
[1750880232071,8.1502189,143.97,143.92,2.3623]
[1750880232275,5.44195351,143.96,143.92,2.3623]
[1750880232475,47.9055,143.99,143.92,2.3623]
[1750880232678,8.14806918,143.98,143.97,6.9423]
[1750880233472,5.44052633,143.98,143.97,6.9423]
[1750880233872,47.46109457,144.02,143.99,6.9413]
[1750880234067,13.01291798,144.01,143.99,6.9413]
[1750880234272,8.14888384,144.0,143.99,6.9413]
[1750880235779,36.1,144.02,143.99,6.9413]
[1750880235979,5.46137853,144.01,143.99,6.9413]
[1750880236276,36.1,144.02,143.97,4.42099457]
[1750880236476,5.45678376,144.01,143.96,4.42099457]
[1750880236787,36.1,144.02,143.96,4.42099457]
[1750880237077,36.1,144.05,143.98,4.42099457]
[1750880237284,8.16082133,144.04,144.0,4.42099457]
[1750880237492,36.1,144.07,144.0,4.42099457]
[1750880237781,13.02926582,144.06,144.0,4.42099457]
[1750880237973,8.16036657,144.05,144.0,4.42099457]
[1750880238175,43.0377,144.07,144.03,6.939]
[1750880238484,43.0377,144.07,144.0,4.42099457]
[1750880238485,8.15060541,144.06,144.0,4.42099457]
[1750880238782,5.44939894,144.05,144.03,6.939]
[1750880238984,40.96320002,144.07,144.03,6.939]
[1750880239173,8.15458811,144.06,144.0,4.42099457]
[1750880239484,5.4491267,144.05,144.04,6.9388]
[1750880239779,5.4491267,144.05,144.0,6.71749457]
[1750880239986,2.70311379,144.06,144.03,6.9391]
[1750880240285,5.46387312,144.05,144.0,6.71749457]
[1750880240579,36.1,144.07,144.0,6.71749457]
[1750880240781,5.46379227,144.06,144.04,6.9386]
[1750880240983,36.1,144.07,144.0,6.71749457]
[1750880241176,36.1,144.07,144.02,4.42099457]
[1750880241379,11.5851,144.09,144.06,6.9379]
[1750880241574,5.46324249,144.08,144.02,4.42099457]
[1750880241775,11.5851,144.09,144.02,4.42099457]
[1750880241984,12.40023661,144.08,144.02,4.42099457]
[1750880242282,4.42099457,144.08,144.01,4.42099457]
[1750880242582,6.9375,144.07,144.01,4.42099457]
[1750880242785,4.42099457,144.08,144.01,4.42099457]
[1750880243277,6.9378,144.07,144.03,6.9391]
[1750880243679,4.42099457,144.08,144.03,6.9391]
[1750880244283,6.9382,144.06,144.03,6.9391]
[1750880245883,12.3900732,144.07,144.03,6.9391]
[1750880246081,6.9377,144.07,144.03,6.9391]
[1750880247282,6.9377,144.07,144.04,6.9388]
[1750880249288,45.95054705,144.06,143.98,145.80403715]
[1750880249589,4.42099457,144.04,143.98,145.80403715]
[1750880249888,6.9401,144.02,143.99,6.941]
[1750880250180,6.9401,144.02,143.98,145.80403715]
[1750880250383,40.50099457,144.02,143.96,36.08]
[1750880250578,4.42099457,144.0,143.94,2.246]
[1750880250784,4.42099457,144.0,143.93,36.08]
[1750880251691,6.9414,143.99,143.96,6.9423]
[1750880253685,2.70065903,144.01,143.9,4.7644]
[1750880253686,45.98044274,143.98,143.9,45.28539457]
[1750880253889,40.52099457,143.98,143.9,45.28539457]
[1750880254389,6.9428,143.96,143.93,6.9439]
[1750880254690,36.1,143.98,143.9,45.28539457]
[1750880254890,4.42099457,143.97,143.9,45.28539457]
[1750880255390,11.36349457,143.97,143.94,6.9435]
[1750880256991,6.9429,143.96,143.93,6.9439]
[1750880257594,6.9434,143.95,143.92,6.9444]
[1750880258895,11.36389457,143.96,143.93,6.9441]
[1750880259788,4.42099457,143.96,143.93,6.9441]
[1750880260386,11.36379457,143.96,143.93,6.9441]
[1750880261487,6.9433,143.95,143.92,6.9444]
[1750880261688,7.45593413,143.97,143.9,36.1]
[1750880261996,11.36399457,143.96,143.93,6.9442]
[1750880263196,4.42099457,143.96,143.93,6.9442]
[1750880263395,4.42099457,143.96,143.94,6.9436]
[1750880263791,4.42099457,143.96,143.93,6.944]
[1750880264495,11.36389457,143.96,143.93,6.944]
[1750880268003,6.9429,143.96,143.93,6.944]
[1750880272493,6.9433,143.95,143.93,6.944]
[1750880273006,4.42099457,143.96,143.92,6.9445]
[1750880273201,4.7559,143.97,143.87,2.4483]
[1750880273202,4.42099457,143.94,143.87,38.4883]
[1750880273501,36.04,143.93,143.89,6.9457]
[1750880273896,36.04,143.93,143.87,38.4883]
[1750880274205,36.04,143.93,143.83,38.3774]
[1750880274206,4.42099457,143.89,143.83,38.3774]
[1750880274402,6.9469,143.88,143.83,38.3774]
[1750880274597,40.46099457,143.89,143.83,2.3374]
[1750880274800,4.42099457,143.87,143.8,40.46099457]
[1750880275005,6.9482,143.85,143.82,6.9491]
[1750880275306,4.42099457,143.87,143.82,6.9491]
[1750880275700,6.948,143.86,143.82,6.9491]
[1750880276306,6.948,143.86,143.83,6.949]
[1750880276606,11.36819457,143.87,143.8,36.04]
[1750880276807,11.36819457,143.87,143.84,6.9482]
[1750880278409,11.36819457,143.87,143.8,36.04]
[1750880278410,6.948,143.86,143.8,36.04]
[1750880278602,4.42099457,143.87,143.8,36.04]
[1750880278912,4.42099457,143.85,143.8,36.04]
[1750880280206,11.36909457,143.85,143.82,6.9493]
[1750880280413,40.46099457,143.85,143.78,6.75839457]
[1750880280708,6.949,143.84,143.81,6.9496]
[1750880280910,40.46099457,143.85,143.78,6.75839457]
[1750880281710,40.46099457,143.85,143.82,6.9495]
[1750880282215,36.04,143.85,143.83,6.9489]
[1750880282604,36.04,143.85,143.8,4.42099457]
[1750880283101,36.04,143.85,143.78,2.3374]
[1750880283310,4.42099457,143.83,143.78,2.3374]
[1750880283505,4.42099457,143.83,143.75,40.48099457]
[1750880283506,4.42099457,143.83,143.75,36.06]
[1750880284216,6.9502,143.81,143.78,6.9514]
[1750880286117,4.42099457,143.81,143.77,6.9517]
[1750880286417,40.48099457,143.81,143.75,36.06]
[1750880286617,47.43119457,143.81,143.75,36.06]
[1750880286921,43.0102,143.81,143.75,36.06]
[1750880287224,6.9506,143.8,143.75,36.06]
[1750880287819,6.9506,143.8,143.77,6.9516]
[1750880288518,47.43119457,143.81,143.78,6.9514]
[1750880288710,36.06,143.81,143.75,36.06]
[1750880288912,36.06,143.81,143.79,6.9508]
[1750880289313,36.06,143.81,143.75,36.06]
[1750880289518,43.0102,143.81,143.78,6.9511]
[1750880290321,43.0102,143.81,143.79,6.9509]
[1750880291221,36.06,143.81,143.75,40.48099457]
[1750880292316,43.01,143.81,143.75,40.48099457]
[1750880292626,36.06,143.81,143.75,40.48099457]
[1750880293025,36.06,143.81,143.75,36.06]
[1750880293220,4.42099457,143.8,143.73,7.3405]
[1750880293528,40.48099457,143.81,143.73,7.3405]
[1750880293928,6.9513,143.79,143.76,6.9521]
[1750880294330,5.30021612,143.8,143.73,7.3405]
[1750880294523,6.9517,143.78,143.73,7.3405]
[1750880294924,6.9512,143.79,143.76,6.9521]
[1750880295127,6.9512,143.79,143.73,7.3405]
[1750880295520,6.9512,143.79,143.76,6.9519]
[1750880296428,6.9512,143.79,143.77,6.9519]
[1750880296630,4.42099457,143.81,143.74,4.42099457]
[1750880296824,36.0,143.82,143.74,4.42099457]
[1750880297029,42.95,143.82,143.79,6.9506]
[1750880297225,36.0,143.82,143.79,6.9506]
[1750880297933,6.9502,143.81,143.78,6.9512]
[1750880298239,6.9502,143.81,143.74,4.42099457]
[1750880298240,4.42099457,143.81,143.73,11.76149457]
[1750880298536,6.9508,143.8,143.77,6.9517]
[1750880298733,4.42099457,143.81,143.73,7.3405]
[1750880298934,4.42099457,143.81,143.74,4.42099457]
[1750880299124,11.37139457,143.81,143.78,6.951]
[1750880300841,42.9498,143.82,143.74,4.42099457]
[1750880301133,6.9491,143.83,143.74,13.9068]
[1750880301339,6.9491,143.83,143.77,4.42099457]
[1750880301735,6.9491,143.83,143.81,6.9497]
[1750880301932,36.0,143.84,143.79,4.42099457]
[1750880302137,36.0,143.86,143.79,4.42099457]
[1750880302339,36.0,143.86,143.83,6.9488]
[1750880302534,6.9481,143.85,143.83,6.9488]
[1750880303137,42.9478,143.86,143.83,6.9488]